Cogmind - Beta 10.2 @@@ ROGUE MODE // 2021.12.25 @ 15:00:47 Player: Skynet Result: Destroyed by as-88053 with Assembled Blade Performance ------------- Evolutions (0) 0 Regions Visited (2) 400 Robots Destroyed (8) 40 Value Destroyed (158) 158 Prototype IDs (0) 0 Alien Tech Used (0) 0 Bonus (0) 0 TOTAL SCORE: 598 Bonus ------- None Cogmind --------- Core Integrity 0/250 Matter 243/300 Energy 100/100 System Corruption 0% Temperature Cool (0) Movement Core (50) Location -10/Mines Parts ------- > --- POWER (1) -------- (None) > --- PROPULSION (2) --- (None) > --- UTILITY (2) ------ Structural Scanner > --- WEAPON (2) ------- (None) > --- INVENTORY (4) ---- (None) Peak State ------------ > --- POWER ------------ Light Ion Engine > --- PROPULSION ------- Aluminum Leg Aluminum Leg > --- UTILITY ---------- Structural Scanner > --- WEAPON ----------- Medium Laser Light Assault Rifle > --- INVENTORY -------- Light Ion Engine [Rating: 6] Favorites ----------- Power Light Ion Engine Engine Light Ion Engine Propulsion Aluminum Leg Leg Aluminum Leg Utility Structural Scanner Device Structural Scanner Storage Medium Matter Pod Weapon Light Assault Rifle Energy Gun Medium Laser Ballistic Gun Light Assault Rifle Launcher Grenade Launcher Build | -11 -10 -10 ------- Run | Scr Mat Min Slots Evolved . | . . . Power . | . . . Propulsion . | . . . Utility . | . . . Weapon . | . . . Parts Attached 15 | 5 7 3 Power 5 | 1 2 2 Engine 5 | 1 2 2 Core . | . . . Reactor . | . . . Propulsion 2 | 2 . . Treads . | . . . Leg 2 | 2 . . Wheel . | . . . Hover . | . . . Flight . | . . . Utility 2 | . 1 1 Device 1 | . 1 . Storage 1 | . . 1 Processor . | . . . Hackware . | . . . Protection . | . . . Artifact . | . . . Weapon 6 | 2 4 . Energy Gun 1 | 1 . . Energy Cannon . | . . . Ballistic Gun 4 | 1 3 . Ballistic Cannon . | . . . Launcher 1 | . 1 . Special Weapon . | . . . Impact Weapon . | . . . Slashing Weapon . | . . . Piercing Weapon . | . . . Special Melee Weapon . | . . . Unidentified Prototypes . | . . . Parts Lost 9 | . 6 3 Power 3 | . 1 2 Propulsion 2 | . 2 . Utility 1 | . . 1 Weapon 3 | . 3 . Highest Loss Streak 6 | . 6 2 Average Slot Usage (%) 59 | . 76 39 Engine 13 | . 12 14 Leg 13 | . 24 . Device 13 | . 12 14 Storage 5 | . . 11 Energy Gun 3 | . 6 . Ballistic Gun 8 | . 15 . Launcher 2 | . 4 . Naked Turns . | . . . Heaviest Build 8 | 6 8 6 Greatest Support 20 | 20 20 3 Greatest Overweight (x) 1 | . 1 1 Average Overweight (x) . | . . . Largest Inventory Capacity 4 | 4 4 4 Average Capacity 4 | 4 4 4 Most Carried 2 | 2 2 2 Average Carried . | . . . Final Capacity 4 | 4 4 4 Final Carried 2 | 1 2 . Class Distribution -------------------- 100% | Mutant Dominant Class ---------------- Mutant | -10/Materials Mutant | -10/Mines Resources | -11 -10 -10 ----------- Run | Scr Mat Min Matter Collected 306 | 257 49 . Remotely . | . . . Salvage Created 192 | 51 141 . Parts 16 | 4 12 . Haulers Intercepted . | . . . Recyclers Shooed 1 | . 1 . Parts Field Recycled . | . . . Retrieved Matter . | . . . Parts Self-Destructed . | . . . Prevented . | . . . Kills | -11 -10 -10 ------- Run | Scr Mat Min Combat Hostiles Destroyed 6 | 1 5 . Guns 4 | 1 3 . AOE 2 | . 2 . Classes Destroyed 3 | 2 1 . Worker 2 | 1 1 . Swarmer 2 | . 2 . Grunt 4 | 1 3 . Best Kill Streak 3 | 1 3 . Combat Bots Only 2 | 1 2 . Max Kills in Single Turn 1 | 1 1 . Gunslinging . | . . . Exploded 1 | . 1 . Melee . | . . . Uniques/NPCs Destroyed . | . . . Combat | -11 -10 -10 -------- Run | Scr Mat Min Damage Taken 962 | 32 692 238 Core 251 | . 115 136 Absorbed by Shields . | . . . Core Remaining (%) 100 | 100 . . Volleys Fired 27 | 7 20 . Largest 2 | 2 2 . Hottest 70 | 70 70 . Shots Fired 47 | 10 37 . Gun 44 | 10 34 . Cannon . | . . . Launcher 3 | . 3 . Special . | . . . Kinetic 32 | 7 25 . Thermal 12 | 3 9 . Explosive 3 | . 3 . Electromagnetic . | . . . Robot Hit Streak 6 | 6 4 . Robot Miss Streak 2 | 1 2 . Penetration Max . | . . . Secondary Targets 1 | . 1 . Max Gunslinging Chain 1 | . 1 . Shots Hit Robots 26 | 8 18 . Core Hits 16 | 4 12 . Critical Hits . | . . . Critical Kills . | . . . Critical Parts Destroyed . | . . . Melee Attacks . | . . . Impact . | . . . Slashing . | . . . Piercing . | . . . Sneak Attacks . | . . . Combat Hostiles . | . . . Follow-up Attacks . | . . . Damage Inflicted 428 | 75 353 . Guns 264 | 75 189 . Cannons . | . . . Explosions 164 | . 164 . Melee . | . . . Ramming . | . . . Kinetic 165 | 50 115 . Thermal 99 | 25 74 . Explosive 164 | . 164 . Electromagnetic . | . . . Impact . | . . . Slashing . | . . . Piercing . | . . . Highest Corruption . | . . . Average Corruption . | . . . Corruption Purged . | . . . Overload Shots . | . . . Overflow Damage . | . . . Projectiles . | . . . Explosions . | . . . Melee . | . . . Knockbacks . | . . . Impact . | . . . Kinetic . | . . . Secondary . | . . . Self-Inflicted Damage 39 | . 39 . Shots 1 | . 1 . Rammed 1 | . 1 . Targets Rammed 1 | . 1 . Kicked . | . . . Crushed . | . . . Highest Temperature 88 | 88 70 . Average Temperature 32 | 45 29 . Received Heat Transfer 410 | 18 309 83 Siege Activations . | . . . Robots Corrupted . | . . . Combat Hostiles . | . . . Parts Fried . | . . . Impact Corruptions . | . . . Robots Melted . | . . . Combat Hostiles . | . . . Parts Melted . | . . . Heat Transferred 296 | 74 222 . Parts Sabotaged . | . . . Parts Stolen . | . . . Parts Stripped . | . . . Power Chain Reactions . | . . . Missiles Intercepted . | . . . Alert | -11 -10 -10 ------- Run | Scr Mat Min Peak Influence 156 | 25 156 68 Initial 48 | . 16 48 Average 52 | 12 82 48 Maximum Alert Level . | . . . Low Security (%) 100 | 100 100 100 Level 1 . | . . . Level 2 . | . . . Level 3 . | . . . Level 4 . | . . . Level 5 . | . . . High Security . | . . . Max Security . | . . . Squads Dispatched 3 | . 3 . Investigation . | . . . Extermination . | . . . Reinforcement 3 | . 3 . Assault . | . . . Garrison . | . . . Intercept . | . . . Construction Impeded . | . . . Haulers Reinforced . | . . . Stealth | -11 -10 -10 --------- Run | Scr Mat Min Distress Signals . | . . . Communications Jammed . | . . . Distress Signals . | . . . Times Spotted 41 | 1 20 20 Peak Tracking Total 18 | 1 6 18 Tactical Retreats 1 | . . 1 Traps | -11 -10 -10 ------- Run | Scr Mat Min Traps Triggered . | . . . Indirectly . | . . . Trap Hack Attempts . | . . . Triggered . | . . . Disarmed . | . . . Reprogrammed . | . . . Reused . | . . . Traps Extracted . | . . . Installed . | . . . Triggered . | . . . Machines | -11 -10 -10 ---------- Run | Scr Mat Min Machines Disabled . | . . . Max in Single Turn . | . . . Machines Sabotaged . | . . . Garrisons Compromised . | . . . Overloaded Fab Kills . | . . . Fab Network Shutdowns . | . . . Hacking | -11 -10 -10 --------- Run | Scr Mat Min Machines Accessed . | . . . Terminals . | . . . Fabricators . | . . . Repair Stations . | . . . Recycling Units . | . . . Scanalyzers . | . . . Garrison Access . | . . . Total Hacks . | . . . Successful . | . . . Failed . | . . . Catastrophic . | . . . Database Lockouts . | . . . Manual . | . . . Terminals . | . . . Fabricators . | . . . Repair Stations . | . . . Recycling Units . | . . . Scanalyzers . | . . . Garrison Access . | . . . Terminal Hacks . | . . . Fabricator Hacks . | . . . Repair Station Hacks . | . . . Recycling Unit Hacks . | . . . Scanalyzer . | . . . Garrison Access Hacks . | . . . Unauthorized Hacks . | . . . Terminals . | . . . Fabricators . | . . . Repair Stations . | . . . Recycling Units . | . . . Scanalyzers . | . . . Garrison Access . | . . . Data Cores Recovered . | . . . Used . | . . . Hacking Detections . | . . . Full Trace Events . | . . . Feedback Events . | . . . Feedback Blocked . | . . . Robot Schematics Acquired . | . . . Robots Built . | . . . Matter . | . . . Time . | . . . Total Robot Build Rating . | . . . Part Schematics Acquired . | . . . Parts Built . | . . . Matter . | . . . Time . | . . . Total Part Build Rating . | . . . Parts Repaired . | . . . Time . | . . . Parts Recycled . | . . . Recycled Matter . | . . . Retrieved Matter . | . . . Retrieved Components . | . . . Parts Scanalyzed . | . . . Part Schematics Acquired . | . . . Parts Damaged . | . . . Bothacking | -11 -10 -10 ------------ Run | Scr Mat Min Used RIF Installer . | . . . Robots Hacked . | . . . Non-combat . | . . . Combat . | . . . Robot Hacks Applied . | . . . Relay Couplers Released . | . . . Robots Rewired . | . . . Allies Hacked . | . . . Hacks Repelled . | . . . Allies | -11 -10 -10 -------- Run | Scr Mat Min Total Allies . | . . . Largest Group . | . . . Highest-Rated Group . | . . . Highest-Rated Ally . | . . . Total Orders . | . . . Ally Attacks . | . . . Total Damage . | . . . Kills . | . . . Allies Corrupted . | . . . Allies Melted . | . . . Intel | -11 -10 -10 ------- Run | Scr Mat Min Robot Analysis Total . | . . . Derelict Logs Recovered 1 | . . 1 Drone Launches . | . . . Drone Recoveries . | . . . Exploration | -11 -10 -10 ------------- Run | Scr Mat Min Turns Passed 601 | 164 241 196 Spaces Moved 437 | 114 145 178 Core 216 | 23 15 178 Treads . | . . . Legs 221 | 91 130 . Wheels . | . . . Hover . | . . . Flight . | . . . Fastest Speed 50 | 50 100 50 Average Speed 107 | 105 117 99 Slowest Speed 120 | 120 120 100 Overloaded Moves . | . . . Propulsion Burnouts . | . . . Robots Hopped . | . . . Cave-ins Triggered . | . . . Exploration Rate (%) 23 | 6 25 38 Regions Visited 2 Branch Regions 1 Pre-discovered Areas . | . . . Known Exits Taken . | . . . Unknown Exits Taken 2 | 1 1 . Scrap Searched . | . . . Spaces Dug . | . . . Terrain Destroyed 4 | . 4 . Melee . | . . . Projectile . | . . . AOE 4 | . 4 . Terrain Rammed . | . . . Walls Destroyed . | . . . Machines Disabled . | . . . Actions | -11 -10 -10 --------- Run | Scr Mat Min Total 526 | 148 182 196 Wait 35 | 17 3 15 Move 435 | 113 144 178 Hop . | . . . Pick Up 10 | 6 4 . Fast Attach 2 | . 2 . Attach 10 | 5 3 2 Detach . | . . . Swap 3 | . 2 1 Drop 3 | . 3 . Fire 27 | 7 20 . Melee . | . . . Ram . | . . . Kick 1 | . 1 . Crush . | . . . Escape Stasis . | . . . Rewire . | . . . Trap . | . . . Miscellaneous . | . . . Route ------- -11/Scrapyard -10/Materials -10/Mines History --------- Turn | Location | Event 2 | -11/Scrapyard | Met Revision 17 84 | -11/Scrapyard | Discovered new exit (range 8) 165 | -11/Scrapyard | Entered Materials 314 | -10/Materials | Build established: Mutant 396 | -10/Materials | Discovered new exit (range 6) 406 | -10/Materials | Entered Mines 422 | -10/Mines | Lost 6 parts (1p2n3w) 504 | -10/Mines | Learned Materials stockpile data 541 | -10/Mines | Core integrity fell below 50% 586 | -10/Mines | Assembled infested the area 591 | -10/Mines | Assisted by a Guerilla fighting off Assembled 602 | -10/Mines | Destroyed by as-88053 with Assembled Blade Last Messages --------------- R-06 Scavenger collects Aluminum Leg. G-34 Mercenary destroyed. Penetrated by HV Slug. Knocked back. R-06 Scavenger suffers critical hit. R-06 Scavenger knocked back. K-01 Serf collects debris. as-10089 sneak attacks. R-06 Scavenger system corrupted by crushing effect. R-06 Scavenger knocked back. R-06 Scavenger destroyed. HV Slug penetrates as-84177. as-84177 suffers critical hit. as-84177 destroyed. Lgt. Ion Engine destroyed. Med. Matter Pod destroyed. K-01 Serf collects debris. as-19977 sneak attacks. K-01 Serf destroyed. [Achievement: First Step to Greatness] Map ----- +----------------------------------------------------+ | | | | | | | | | | | | | | | | | | | | | | | | | ??????????????????????????????????????????? | | ??????????????????????????????????????????? | | ??????????????????????????????????????????? | | #?????????????????????????????????????????? | | ##?#####???????????#####??????????????????? | | ### ##??????????#gg #??????????????????? | | #??####????# ##?????????????????? | | #?## ##???# ##????????????????? | | #### #???# #????????????#???? | | ## ##?# ##### #????????? #??? | | ### #??# h ##??????a ??? | | ##?# #??# r aaa%#####a #?? | | ##??# #### ####### aaaaa%a #?? | | ????# ##?????# a@aaa=% #??? | | ##### ### #??????## #### #???? | | # #?# #???????## #????? ##???? | | # ######? #????????## ##??????? #????? | | # #?????# #?????????####????????????????? | | # #????? #?????????????????????????????? | | #????# #?????????????????????????????? | | ###????## ##?????????????????????????????? | | ????????####??????????????????????????????? | | ??????????????????????????????????????????? | | ??????????????????????????????????????????? | | ??????????????????????????????????????????? | | ??????????????????????????????????????????? | | ????????????###???????????????????????????? | | ###??????### #???????????????????????????? | | ######## #???????????????????????????? | | #???????????????????????????? | | ##??????????????????????????? | | #??????????????????????????? | | ## #??????????????????????????? | | ##### #??????????????????????????? | | ##????# ##??????????????????????????? | | ##??????###???????????????????????????? | | ##?????????????????????????????????????? | | #??????????????????????????????????????? | +----------------------------------------------------+ Best States ------------- Heat Dissipation 25 Energy Generation 10 Energy Capacity 125 Matter Stores 300 Matter Capacity 400 Sight Range 16 Terrain Scan Density 10 Evasion (%) 50 Item Schematics ----------------- None Robot Schematics ------------------ None Fabricated ------------ Nothing Alien Tech Used ----------------- None Achievements -------------- First Step to Greatness Uninvited Guest Challenges ------------ None Game ------ Seed CryofiberBoreStreamer Manual? 0 Play Time 00:25:25 Cumulative 0.8 hours Start 2021.12.25 @ 14:17:39 End 2021.12.25 @ 15:00:47 Sessions 1 Manual Loads 0 Difficulty Rogue Special Mode None Game No. 1 Rogue 1 Adventurer 0 Explorer 0 Win Type - Total 0 Types 0/0/0/0/0/0/0/0/0 Lore% 0 Gallery% 0 Achievement% 0 Wizard Run 0 Options --------- ASCII 0 Keyboard 0 Movement Arrows Keybinds 0 Fullscreen 1 Font 18/Terminus Map View 76x50 Tactical HUD 0 Map Filters NONE Filters NONE Steam 0 RUN: 50953236-442c-4d55-81f0-77f70b819815